{"text_format":"3","workbook":"xlsx","n_sheets":1,"sheets":["Blodtryk og glukose"],"not_rendered":{"defined_names":9},"read":"whole","date_system":"1900"}

{"sheet":"Blodtryk og glukose","index":0,"n_rows":13,"n_cols":11,"rows_kept":13,"merged":[[0,1,4,3],[0,4,0,9],[1,4,1,6],[1,7,1,9]]}
[null,"Sporing af blodtryk og glukose",null,null,"Tilpas skalaværdierne i cellerne E2 til J5 nedenfor."]
[{"$nulls":4},"BLODTRYK",null,null,"GLUCOSESKALA"]
[{"$nulls":4},120,"SYSTOLISK",140,70,100,150]
[{"$nulls":4},80,"DIASTOLISK",90,"LAV","NORMAL","HØJT"]
[{"$nulls":4},"MÅLTRYK",null,"RING TIL LÆGE"]
[null,"Dato","Klokkeslæt","Hændelse","Systolisk","Diastolisk","Puls","Glukose","Niveau","Status","Noter"]
[null,{"$f":"TODAY()","v":"2022-08-03"},"06:00:00","Vågen",129,79,72,55,{"$f":"BloodPressureAndGlucose[[#This Row],[Glukose]]","v":55},{"$f":"IFERROR(IF(BloodPressureAndGlucose[[#This Row],[Niveau]]=0,\"\",IF(BloodPressureAndGlucose[[#This Row],[Niveau]]<=GLavt,\"Lav\",IF(AND(BloodPressureAndGlucose[[#This Row],[Niveau]]>GLavt,BloodPressureAndGlucose[[#This Row],[Niveau]]<GHøjt),\"Normal\",\"HøJt\"))), \"\")","v":"Lav"}]
[null,{"$f":"TODAY()","v":"2022-08-03"},"07:00:00","Før måltid",120,80,74,70,{"$f":"BloodPressureAndGlucose[[#This Row],[Glukose]]","v":70},{"$f":"IFERROR(IF(BloodPressureAndGlucose[[#This Row],[Niveau]]=0,\"\",IF(BloodPressureAndGlucose[[#This Row],[Niveau]]<=GLavt,\"Lav\",IF(AND(BloodPressureAndGlucose[[#This Row],[Niveau]]>GLavt,BloodPressureAndGlucose[[#This Row],[Niveau]]<GHøjt),\"Normal\",\"HøJt\"))), \"\")","v":"Lav"}]
[null,"2022-08-03","09:00:00","Efter måltid",133,80,75,75,{"$f":"BloodPressureAndGlucose[[#This Row],[Glukose]]","v":75},{"$f":"IFERROR(IF(BloodPressureAndGlucose[[#This Row],[Niveau]]=0,\"\",IF(BloodPressureAndGlucose[[#This Row],[Niveau]]<=GLavt,\"Lav\",IF(AND(BloodPressureAndGlucose[[#This Row],[Niveau]]>GLavt,BloodPressureAndGlucose[[#This Row],[Niveau]]<GHøjt),\"Normal\",\"HøJt\"))), \"\")","v":"Normal"}]
[null,"2022-08-03","10:00:00","Kun BT",143,91,75,190,{"$f":"BloodPressureAndGlucose[[#This Row],[Glukose]]","v":190},{"$f":"IFERROR(IF(BloodPressureAndGlucose[[#This Row],[Niveau]]=0,\"\",IF(BloodPressureAndGlucose[[#This Row],[Niveau]]<=GLavt,\"Lav\",IF(AND(BloodPressureAndGlucose[[#This Row],[Niveau]]>GLavt,BloodPressureAndGlucose[[#This Row],[Niveau]]<GHøjt),\"Normal\",\"HøJt\"))), \"\")","v":"HøJt"}]
[null,"2022-08-03","12:00:00","Før måltid",141,84,70,140,{"$f":"BloodPressureAndGlucose[[#This Row],[Glukose]]","v":140},{"$f":"IFERROR(IF(BloodPressureAndGlucose[[#This Row],[Niveau]]=0,\"\",IF(BloodPressureAndGlucose[[#This Row],[Niveau]]<=GLavt,\"Lav\",IF(AND(BloodPressureAndGlucose[[#This Row],[Niveau]]>GLavt,BloodPressureAndGlucose[[#This Row],[Niveau]]<GHøjt),\"Normal\",\"HøJt\"))), \"\")","v":"Normal"}]
[null,{"$f":"TODAY()","v":"2022-08-03"},"15:00:00","Efter måltid",132,80,68,90,{"$f":"BloodPressureAndGlucose[[#This Row],[Glukose]]","v":90},{"$f":"IFERROR(IF(BloodPressureAndGlucose[[#This Row],[Niveau]]=0,\"\",IF(BloodPressureAndGlucose[[#This Row],[Niveau]]<=GLavt,\"Lav\",IF(AND(BloodPressureAndGlucose[[#This Row],[Niveau]]>GLavt,BloodPressureAndGlucose[[#This Row],[Niveau]]<GHøjt),\"Normal\",\"HøJt\"))), \"\")","v":"Normal"},"Tog BT-medicin med måltid"]
[null,"Gennemsnit",null,null,{"$f":"SUBTOTAL(101,BloodPressureAndGlucose[Systolisk])","v":133},{"$f":"SUBTOTAL(101,BloodPressureAndGlucose[Diastolisk])","v":{"v":82.33333333333333,"d":"82"}},{"$f":"SUBTOTAL(101,BloodPressureAndGlucose[Puls])","v":{"v":72.33333333333333,"d":"72"}},{"$f":"SUBTOTAL(101,BloodPressureAndGlucose[Glukose])","v":{"v":103.33333333333333,"d":"103"}}]